bitfinex/quotes_SOLUSD_20250307
["timestamp","ask_amount","ask_price","bid_price","bid_amount"]
[1741354860991,0.03,146.44,146.39,0.14216157]
[1741354861282,51.16394671,146.44,146.39,0.14216157]
[1741354861456,51.13394671,146.43,146.38,0.14216157]
[1741354861649,0.03,146.44,146.4,0.14216157]
[1741354862050,51.13394671,146.41,146.4,0.14216157]
[1741354862564,51.13394671,146.41,146.31,51.13394671]
[1741354862761,51.13394671,146.41,146.23,59.15124671]
[1741354862762,51.13394671,146.33,146.27,51.13394671]
[1741354862984,51.13394671,146.33,146.26,51.13394671]
[1741354863282,51.13394671,146.37,146.24,20.68688752]
[1741354863283,51.13394671,146.3,146.24,9.68688752]
[1741354863465,51.13394671,146.29,146.24,0.033]
[1741354863667,51.13394671,146.3,146.24,51.16694671]
[1741354863879,51.13394671,146.3,146.24,0.033]
[1741354864060,51.13394671,146.29,146.24,0.033]
[1741354864264,51.13394671,146.28,146.25,312.0]
[1741354864471,51.13394671,146.28,146.26,0.14216157]
[1741354864774,51.13394671,146.27,146.25,312.0]
[1741354864989,20.0,146.33,146.25,312.0]
[1741354864990,51.13394671,146.3,146.25,312.0]
[1741354865181,51.13394671,146.28,146.25,312.0]
[1741354865385,20.0,146.33,146.24,0.033]
[1741354865386,51.13394671,146.26,146.24,0.033]
[1741354865582,51.13394671,146.25,146.24,0.033]
[1741354865763,10.94,146.29,146.24,0.033]
[1741354865963,30.94,146.34,146.24,0.033]
[1741354866156,51.13394671,146.3,146.24,0.033]
[1741354866361,51.13394671,146.29,146.24,0.17516157]
[1741354866582,51.13394671,146.28,146.24,0.033]
[1741354866889,30.94,146.34,146.25,0.14216157]
[1741354866890,51.13394671,146.29,146.25,0.14216157]
[1741354867101,51.13394671,146.28,146.25,0.14216157]
[1741354867286,51.13394671,146.28,146.24,0.033]
[1741354867287,51.13394671,146.26,146.24,0.033]
[1741354867462,51.13394671,146.25,146.24,0.033]
[1741354868029,10.94,146.34,146.24,0.033]
[1741354868176,51.13394671,146.3,146.24,51.30910828]
[1741354868497,10.94,146.34,146.26,0.14216157]
[1741354868660,51.13394671,146.29,146.26,0.14216157]
[1741354868861,30.83454886,146.38,146.26,51.27610828]
[1741354868862,12.1849,146.38,146.26,51.27610828]
[1741354869183,51.13394671,146.39,146.32,0.14216157]
[1741354869400,20.0,146.41,146.32,0.14216157]
[1741354869565,0.28432314,146.4,146.24,0.17516157]
[1741354869767,20.0,146.33,146.24,0.033]
[1741354870491,51.13394671,146.26,146.24,0.033]
[1741354870802,51.13394671,146.25,146.24,0.033]
[1741354871376,51.13394671,146.26,146.24,0.033]
[1741354871596,51.13394671,146.25,146.24,0.033]
[1741354872375,51.13394671,146.3,146.24,0.033]
[1741354872608,51.13394671,146.25,146.24,0.033]
[1741354872810,24.0656,146.32,146.24,0.033]
[1741354873093,24.0656,146.32,146.25,0.14216157]
[1741354873094,13.2456,146.32,146.25,0.14216157]
[1741354873404,51.13394671,146.27,146.26,0.14216157]
[1741354873601,13.2456,146.32,146.26,0.14216157]
[1741354873777,13.2456,146.32,146.24,0.033]
[1741354874080,51.13394671,146.27,146.24,0.033]
[1741354874484,51.13394671,146.25,146.24,0.033]
[1741354874685,51.13394671,146.25,146.24,0.0001]
[1741354874905,10.76,146.3,146.24,0.0001]
[1741354875214,13.2456,146.32,146.24,0.0001]
[1741354875418,51.13394671,146.27,146.24,0.0001]
[1741354875706,51.13394671,146.26,146.24,0.0001]
[1741354875888,51.13394671,146.25,146.24,0.0001]
[1741354876096,51.13394671,146.27,146.24,0.0001]
[1741354876588,13.2456,146.32,146.24,0.0001]
[1741354876791,51.13394671,146.3,146.24,51.27620828]
[1741354877181,51.13394671,146.29,146.24,0.14226157]
[1741354877377,51.13394671,146.26,146.24,0.0001]
[1741354877581,51.13394671,146.25,146.24,0.0001]
[1741354877982,51.13394671,146.28,146.24,0.0001]
[1741354878293,13.2456,146.32,146.24,0.0001]
[1741354878294,51.13394671,146.31,146.25,0.14216157]
[1741354878476,51.13394671,146.32,146.25,51.27610828]
[1741354878685,51.13394671,146.35,146.29,51.27610828]
[1741354878898,0.03,146.42,146.34,0.14216157]
[1741354879103,0.03,146.42,146.38,0.14216157]
[1741354879306,0.03,146.42,146.38,0.42648471]
[1741354879505,0.03,146.42,146.4,0.14216157]
[1741354879711,0.03,146.42,146.37,31.68413656]
[1741354879712,0.03,146.42,146.41,312.14216157]
[1741354880016,0.03,146.42,146.41,363.56043142]
[1741354880183,0.03,146.42,146.41,312.14216157]
[1741354880506,0.03,146.42,146.41,0.14216157]
[1741354880717,51.16394671,146.42,146.25,2.0]
[1741354880920,20.0,146.39,146.25,6.8376]
[1741354881086,20.0,146.38,146.22,171.64814235]
[1741354881288,51.13394671,146.33,146.27,51.13394671]
[1741354881485,51.13394671,146.35,146.28,51.13394671]
[1741354881679,20.0,146.38,146.27,51.13394671]
[1741354881680,51.13394671,146.33,146.27,51.13394671]
[1741354881988,51.13394671,146.33,146.24,0.0001]
[1741354882192,51.13394671,146.32,146.26,51.13394671]
[1741354882586,51.13394671,146.31,146.24,51.13404671]
[1741354882784,51.13394671,146.3,146.24,51.13404671]
[1741354882989,51.13394671,146.29,146.24,0.0001]
[1741354883206,51.13394671,146.29,146.24,0.14226157]
[1741354883507,51.13394671,146.28,146.24,0.0001]
[1741354883711,51.13394671,146.26,146.24,0.0001]
[1741354883880,51.13394671,146.3,146.24,0.0001]
[1741354883881,51.13394671,146.25,146.24,0.0001]
[1741354885320,51.13394671,146.25,146.17,0.033]
[1741354885321,20.0,146.22,146.17,0.033]
[1741354885501,51.13394671,146.18,146.17,0.033]
[1741354887006,20.0,146.22,146.17,0.033]
[1741354887204,51.13394671,146.18,146.17,0.033]
[1741354888592,51.13394671,146.18,146.17,0.0001]
[1741354889007,51.13394671,146.18,146.16,0.0001]
[1741354889201,71.13394671,146.17,146.16,0.0001]
[1741354889794,122.26789342,146.17,146.16,0.0001]
[1741354890001,140.91754228,146.17,146.16,0.0001]
[1741354890325,71.13394671,146.17,146.16,0.0001]
[1741354890888,122.26789342,146.17,146.16,0.0001]
[1741354891126,71.13394671,146.17,146.16,0.0001]
[1741354891305,140.91754228,146.17,146.13,9.6e-05]
[1741354891504,51.13394671,146.14,146.13,9.6e-05]
[1741354892229,20.0,146.17,146.13,9.6e-05]
[1741354892396,10.34,146.22,146.13,9.6e-05]
[1741354892725,51.13394671,146.14,146.13,9.6e-05]
[1741354893913,51.13394671,146.15,146.13,9.6e-05]
[1741354894098,51.13394671,146.17,146.13,9.6e-05]
[1741354894299,51.13394671,146.18,146.13,312.14225757]
[1741354894498,51.13394671,146.19,146.13,363.27620428]
[1741354894705,51.13394671,146.22,146.16,0.14216157]
[1741354895318,51.13394671,146.22,146.17,0.14216157]
[1741354895508,51.13394671,146.21,146.17,0.14216157]
[1741354895818,51.13394671,146.22,146.16,51.27610828]
[1741354896323,51.13394671,146.21,146.15,51.27610828]
[1741354896503,51.13394671,146.2,146.15,0.14216157]
[1741354896706,51.13394671,146.19,146.13,51.13404271]
[1741354897221,51.13394671,146.22,146.16,0.14216157]
[1741354897516,51.13394671,146.22,146.16,51.27610828]
[1741354897717,51.13394671,146.25,146.18,51.27610828]
[1741354897925,51.13394671,146.26,146.2,0.14216157]
[1741354898133,51.13394671,146.27,146.2,51.27610828]
[1741354898430,51.13394671,146.25,146.22,0.14216157]
[1741354898622,51.13394671,146.26,146.22,0.14216157]
[1741354899521,7.8843,146.29,146.22,0.14216157]
[1741354899822,51.13394671,146.25,146.22,0.14216157]
[1741354900231,51.13394671,146.23,146.19,0.14216157]
[1741354900437,51.13394671,146.21,146.15,51.13394671]
[1741354900737,51.13394671,146.2,146.13,51.13404271]
[1741354900908,51.13394671,146.2,146.14,0.14216157]
[1741354901104,51.13394671,146.2,146.13,51.13404271]
[1741354901302,51.13394671,146.2,146.15,0.14216157]
[1741354901529,51.13394671,146.19,146.13,9.6e-05]
[1741354901727,51.13394671,146.18,146.13,9.6e-05]
[1741354902517,51.13394671,146.23,146.13,0.033096]
[1741354902518,51.13394671,146.16,146.13,0.033096]
[1741354902718,51.13394671,146.14,146.13,0.033096]
[1741354902926,51.13394671,146.14,146.13,9.6e-05]
[1741354903612,51.13394671,146.1,146.09,9.6e-05]
[1741354904014,102.26789342,146.1,146.09,9.6e-05]
[1741354904541,20.0,146.07,146.02,0.033]
[1741354904753,51.13394671,146.03,146.02,0.033]
[1741354905329,20.0,146.06,146.02,0.033]
[1741354905537,3.63346097,146.13,146.02,0.033]
[1741354905737,51.13394671,146.03,146.02,0.033]
[1741354907916,51.13394671,146.03,145.89,13.1361]
[1741354907917,20.0,146.0,145.93,51.13394671]
[1741354908123,18.64964886,145.99,145.85,34.34477138]
[1741354908312,30.02,146.0,145.86,34.29950052]
[1741354908536,19.9913,146.03,145.88,34.8886984]
[1741354908722,51.13394671,146.05,145.97,0.14216157]
[1741354908912,20.3446,146.11,145.97,51.27610828]
[1741354908913,51.13394671,146.04,145.97,51.27610828]
[1741354909261,51.13394671,146.02,145.97,0.14216157]
[1741354909542,20.3446,146.11,145.99,0.14216157]
[1741354909757,3.50899356,146.13,146.1,0.14216157]
[1741354910338,51.13394671,146.11,146.05,10.0]
[1741354910518,51.13394671,146.11,146.06,0.14216157]
[1741354910719,51.13394671,146.12,146.06,0.14216157]
[1741354910933,51.13394671,146.12,146.06,312.14216157]
[1741354911118,51.13394671,146.12,146.06,363.27610828]
[1741354911323,51.13394671,146.12,146.06,51.27610828]
[1741354911639,51.13394671,146.16,146.1,0.14216157]
[1741354911829,51.13394671,146.11,146.06,0.14216157]
[1741354912023,20.0,146.13,146.06,0.14216157]
[1741354912430,51.13394671,146.07,146.06,0.14216157]
[1741354912631,51.13394671,146.07,146.0,51.34718906]
[1741354912829,51.13394671,146.06,146.01,0.14216157]
[1741354913073,51.13394671,146.05,145.99,9.94]
[1741354913215,51.13394671,146.06,145.99,61.07394671]
[1741354913620,51.13394671,146.06,146.0,0.14216157]
[1741354913842,51.13394671,146.05,145.98,51.13394671]
[1741354914018,51.13394671,146.04,145.99,0.14216157]
[1741354914218,38.64964886,146.13,146.0,51.13394671]
[1741354914219,51.13394671,146.06,146.0,51.13394671]
[1741354914440,51.13394671,146.06,146.02,0.14216157]
[1741354914637,51.13394671,146.05,146.02,0.14216157]
[1741354914843,51.13394671,146.04,146.01,312.0]
[1741354915043,51.13394671,146.04,146.02,0.14216157]
[1741354915252,51.13394671,146.05,146.01,312.0]
[1741354915433,51.13394671,146.05,146.02,0.14216157]
[1741354915618,51.13394671,146.09,145.99,0.033]
[1741354915619,51.13394671,146.04,145.99,0.033]
[1741354915825,51.13394671,146.09,145.99,0.033]
[1741354916033,51.13394671,146.04,145.99,0.17516157]
[1741354916438,51.13394671,146.04,145.99,0.033]
[1741354916959,51.13394671,146.03,145.99,0.033]
[1741354917137,51.13394671,146.04,145.99,0.033]
[1741354917441,51.13394671,146.02,145.99,0.033]
[1741354918431,51.13394671,146.03,145.99,0.033]
[1741354918634,51.13394671,146.03,146.0,0.14216157]
[1741354918833,51.13394671,146.02,146.0,0.14216157]
[1741354919044,51.13394671,146.02,145.99,0.033]
[1741354919251,51.13394671,146.03,145.99,0.033]
[1741354919453,51.13394671,146.01,145.99,0.033]
[1741354919626,51.13394671,146.02,145.99,0.033]
[1741354920344,51.13394671,146.01,145.99,0.033]
[1741354920528,20.0,146.05,145.99,0.033]
[1741354920529,51.13394671,146.0,145.99,0.033]
[1741354920925,51.13394671,145.96,145.9,9.72]
[1741354921123,51.13394671,145.93,145.89,148.22]
[1741354921328,51.13394671,145.92,145.84,11.5002838]
[1741354921546,51.13394671,145.95,145.84,11.5002838]
[1741354921547,51.13394671,145.9,145.84,11.5002838]
[1741354921737,51.13394671,145.95,145.84,69.49073051]
[1741354921938,51.13394671,145.91,145.85,51.13394671]
[1741354922144,18.64964886,145.98,145.86,363.13394671]
[1741354922350,51.13394671,145.89,145.86,312.0]
[1741354922649,51.13394671,145.89,145.84,11.5002838]
[1741354922848,51.13394671,145.9,145.84,62.63423051]
[1741354923237,51.13394671,145.92,145.85,51.13394671]
[1741354923539,28.36964886,146.01,145.89,0.14216157]
[1741354923738,20.0,145.98,145.89,0.14216157]
[1741354923950,51.13394671,145.95,145.89,0.14216157]
[1741354924140,20.0,145.98,145.89,51.27610828]
[1741354924327,51.13394671,145.95,145.89,51.27610828]
[1741354924650,51.13394671,145.95,145.88,6.8548]
[1741354924651,51.13394671,145.94,145.88,51.27610828]
[1741354924847,51.13394671,145.96,145.9,51.27610828]
[1741354925149,51.13394671,145.99,145.93,51.27610828]
[1741354925448,51.13394671,145.99,145.95,0.14216157]
[1741354925625,51.13394671,145.98,145.95,0.14216157]
[1741354925825,51.13394671,145.96,145.94,0.14216157]
[1741354926347,51.13394671,145.95,145.94,0.14216157]
[1741354926758,102.26789342,145.95,145.85,9.7]
[1741354926958,51.13394671,145.9,145.85,9.7]
[1741354927141,51.13394671,145.89,145.84,1.7802838]
[1741354927536,51.13394671,145.88,145.84,1.7802838]
[1741354927742,51.13394671,145.89,145.84,1.7802838]
[1741354927939,51.13394671,145.88,145.84,1.7802838]
[1741354928252,51.13394671,145.95,145.84,52.91423051]
[1741354928458,51.13394671,145.95,145.9,0.14216157]
[1741354928757,51.13394671,145.93,145.9,0.14216157]
[1741354928958,51.13394671,145.94,145.84,8.6369838]
[1741354929254,51.13394671,145.92,145.86,51.13394671]
[1741354929455,9.7,145.99,145.92,0.14216157]
[1741354929754,51.13394671,145.97,145.93,0.14216157]
[1741354929943,20.0,145.99,145.84,1.7802838]
[1741354930140,20.0,145.99,145.85,51.13394671]
[1741354930366,20.0,145.99,145.87,51.13394671]
[1741354930367,51.13394671,145.93,145.87,51.13394671]
[1741354930534,29.72,145.99,145.87,51.13394671]
[1741354930535,51.13394671,145.91,145.87,0.14216157]
[1741354930733,51.13394671,145.89,145.84,1.7802838]
[1741354930934,51.13394671,145.9,145.85,0.14216157]
[1741354931134,51.13394671,145.95,145.88,51.27610828]
[1741354931361,0.03,146.0,145.91,0.14216157]
[1741354931536,0.03,146.0,145.95,0.14216157]
[1741354931743,51.16394671,146.0,145.95,0.14216157]
[1741354932057,51.13394671,145.97,145.95,0.14216157]
[1741354932263,51.13394671,145.99,145.94,0.14216157]
[1741354932476,0.03,146.0,145.95,0.14216157]
[1741354932640,0.03,146.0,145.98,51.27610828]
[1741354933043,0.03,146.0,145.99,312.14216157]
[1741354933237,0.03,146.0,145.99,363.27610828]
[1741354933562,0.03,146.0,145.99,51.56043142]
[1741354933768,0.03,146.0,145.99,70.21008028]
[1741354934078,10.33596498,146.1,146.01,0.14216157]
[1741354934254,10.33596498,146.1,146.07,0.14216157]
[1741354934453,10.33596498,146.1,146.09,0.14216157]
[1741354934852,61.46991169,146.1,146.09,0.14216157]
[1741354935157,61.46991169,146.1,146.02,0.14216157]
[1741354935474,10.33596498,146.1,146.04,0.14216157]
[1741354935665,10.33596498,146.1,146.06,51.13394671]
[1741354935867,10.33596498,146.1,146.07,0.14216157]
[1741354936268,0.03,146.13,146.07,51.27610828]
[1741354936571,0.03,146.13,146.01,9.66]
[1741354936777,51.13394671,146.1,146.03,51.13394671]
[1741354937077,51.13394671,146.12,146.05,0.14216157]
[1741354937367,51.16394671,146.13,146.09,0.14216157]
[1741354937584,51.13394671,146.12,146.09,0.14216157]
[1741354937770,51.16394671,146.13,146.09,0.14216157]
[1741354937956,51.16394671,146.13,146.07,0.14216157]
[1741354938265,0.03,146.13,146.1,0.14216157]
[1741354938561,0.03,146.13,146.09,51.13394671]
[1741354938562,0.03,146.13,146.12,51.27610828]
[1741354938759,0.03,146.13,146.12,0.14216157]
[1741354939966,0.03,146.13,146.04,6.8474]
[1741354940165,51.13394671,146.12,146.05,51.13394671]
[1741354940365,0.03,146.13,146.09,51.13394671]
[1741354940671,15.31413893,146.12,146.1,0.14216157]
[1741354941068,0.03,146.13,146.08,51.27610828]
[1741354941267,0.03,146.13,146.1,0.14216157]
[1741354941466,0.03,146.13,146.12,0.14216157]
[1741354941667,0.03,146.13,146.12,51.27610828]
[1741354942673,0.03,146.13,146.12,58.11970828]
[1741354942854,0.03,146.13,146.12,389.05368028]
[1741354943468,0.03,146.13,146.12,363.27610828]
[1741354943669,0.03,146.13,146.12,370.11970828]
[1741354944369,0.03,146.13,146.12,389.05368028]
[1741354944574,0.03,146.15,146.14,39.07613357]
[1741354944772,0.03,146.15,146.14,90.21008028]
[1741354945074,0.0001,146.15,146.14,90.21008028]
[1741354945266,0.0001,146.15,146.14,71.27610828]
[1741354945580,12.0035,146.26,146.15,0.14216157]
[1741354945773,51.13394671,146.22,146.15,0.14216157]
[1741354946173,12.0035,146.26,146.17,51.13394671]
[1741354946372,12.0035,146.26,146.2,0.14216157]
[1741354946555,0.03,146.28,146.2,0.14216157]
[1741354946753,51.13394671,146.25,146.2,0.14216157]
[1741354946972,0.03,146.28,146.22,0.28432314]
[1741354947178,0.03,146.28,146.22,0.42648471]
[1741354947350,0.03,146.28,146.26,20.14216157]
[1741354947553,0.03,146.28,146.26,0.14216157]
[1741354947750,0.03,146.28,146.26,312.14216157]
[1741354948186,0.03,146.28,146.27,0.14216157]
[1741354948358,0.03,146.28,146.27,78.07171314]
[1741354948557,0.03,146.3,146.29,0.14216157]
[1741354948779,0.03,146.3,146.29,124.36873498]
[1741354948780,0.0001,146.3,146.29,124.36873498]
[1741354949078,0.0001,146.3,146.29,122.36873498]
[1741354949389,0.0001,146.3,146.29,51.27610828]
[1741354949556,0.0001,146.3,146.29,0.14216157]
[1741354949875,0.0001,146.3,146.29,12.62832538]
[1741354950249,0.0001,146.3,146.26,157.78]
[1741354950473,0.0001,146.3,146.27,0.14216157]
[1741354950660,0.0001,146.3,146.29,51.27610828]
[1741354951067,0.0001,146.3,146.29,70.21008028]
[1741354951279,0.0001,146.3,146.29,435.34402699]
[1741354951474,51.16394671,146.42,146.33,0.14216157]
[1741354951689,51.16394671,146.42,146.37,0.14216157]
[1741354952297,51.13394671,146.4,146.36,0.14216157]
[1741354952483,51.13394671,146.37,146.36,0.14216157]
[1741354952671,51.13394671,146.37,146.28,6.8361]
[1741354952672,51.13394671,146.37,146.28,60.77394671]
[1741354952983,51.13394671,146.33,146.28,9.64]
[1741354953157,9.67,146.42,146.28,9.64]
[1741354953158,51.13394671,146.35,146.29,51.13394671]
[1741354953362,51.13394671,146.35,146.3,0.14216157]
[1741354953567,9.64,146.41,146.32,0.14216157]
[1741354953880,51.16394671,146.42,146.36,51.27610828]
[1741354954065,51.13394671,146.41,146.38,0.14216157]
[1741354954268,0.03,146.42,146.38,0.14216157]
[1741354954269,51.13394671,146.39,146.38,0.14216157]
[1741354954487,51.13394671,146.39,146.33,51.13394671]
[1741354954685,51.13394671,146.36,146.33,0.14216157]
[1741354954861,51.13394671,146.37,146.33,312.14216157]
[1741354955064,51.13394671,146.39,146.33,363.27610828]
[1741354955287,51.13394671,146.4,146.35,0.14216157]
[1741354955592,51.13394671,146.39,146.35,0.14216157]
[1741354955793,51.13394671,146.41,146.36,0.14216157]
[1741354956091,51.13394671,146.38,146.33,0.14216157]
[1741354956301,51.13394671,146.36,146.31,9.62]
[1741354956459,51.13394671,146.35,146.29,51.13394671]
[1741354956655,51.13394671,146.33,146.28,51.13394671]
[1741354956860,51.13394671,146.34,146.28,51.27610828]
[1741354957085,51.13394671,146.32,146.26,199.27394671]
[1741354957288,51.13394671,146.33,146.27,51.13394671]
[1741354957498,51.13394671,146.33,146.28,0.14216157]
[1741354957664,51.13394671,146.35,146.3,0.14216157]
[1741354957989,20.0,146.41,146.3,51.27610828]
[1741354958299,51.13394671,146.32,146.3,312.0]
[1741354958592,51.13394671,146.32,146.27,0.14216157]
[1741354958789,51.13394671,146.35,146.29,51.27610828]
[1741354958966,51.13394671,146.36,146.31,0.14216157]
[1741354959166,51.13394671,146.32,146.27,0.14216157]
[1741354959496,51.13394671,146.31,146.26,148.14]
[1741354959697,51.13394671,146.29,146.26,148.14]
[1741354959869,51.13394671,146.29,146.23,51.13394671]
[1741354959870,51.13394671,146.27,146.18,9.62]
[1741354960071,51.13394671,146.26,146.2,51.13394671]
[1741354960286,51.13394671,146.26,146.21,18.79181043]
[1741354960604,51.13394671,146.27,146.21,69.92575714]
[1741354960888,51.13394671,146.3,146.16,0.21324235]
[1741354960889,51.13394671,146.22,146.16,0.21324235]
[1741354961097,51.13394671,146.21,146.17,0.14216157]
[1741354961461,51.13394671,146.22,146.19,312.0]
[1741354961682,51.13394671,146.2,146.1,6.8446]
[1741354961890,51.13394671,146.15,146.09,51.13394671]
[1741354962093,51.13394671,146.17,146.11,51.13394671]
[1741354962480,51.13394671,146.18,146.12,51.13394671]
[1741354962676,51.13394671,146.23,146.13,51.13394671]
[1741354962876,51.13394671,146.23,146.17,51.13394671]
[1741354963080,51.13394671,146.22,146.18,0.14216157]
[1741354963276,20.0,146.25,146.11,18.64964886]
[1741354963477,51.13394671,146.17,146.11,51.13394671]
[1741354964292,51.13394671,146.19,146.14,0.14216157]
[1741354964491,51.13394671,146.2,146.14,69.78359557]
[1741354964695,51.13394671,146.23,146.18,0.14216157]
[1741354964891,51.13394671,146.22,146.18,0.14216157]
[1741354965084,51.13394671,146.22,146.17,0.14216157]
[1741354965395,51.13394671,146.23,146.17,0.14216157]
[1741354965692,51.13394671,146.22,146.17,0.14216157]
[1741354965892,51.13394671,146.2,146.15,0.14216157]
[1741354966093,51.13394671,146.22,146.15,70.21008028]
[1741354966282,51.13394671,146.23,146.17,51.27610828]
[1741354966477,64.1820471,146.3,146.19,51.27610828]
[1741354966478,51.13394671,146.25,146.19,51.27610828]
[1741354966977,0.03,146.3,146.25,18.79181043]
[1741354967178,0.03,146.3,146.29,51.27610828]
[1741354967395,0.03,146.3,146.29,70.06791871]
[1741354968174,0.03,146.3,146.29,388.90361871]
[1741354968877,0.03,146.3,146.29,389.04578028]
[1741354969487,0.03,146.3,146.29,382.06791871]
[1741354969676,0.03,146.3,146.29,381.92575714]
[1741354969885,0.03,146.3,146.29,389.04578028]
[1741354970081,12.4487,146.4,146.33,0.14216157]
[1741354970082,51.13394671,146.38,146.33,0.14216157]
[1741354970298,51.13394671,146.38,146.32,51.13394671]
[1741354970599,51.13394671,146.35,146.33,0.14216157]
[1741354970795,7.5156,146.41,146.33,0.14216157]
[1741354970995,51.13394671,146.34,146.28,0.14216157]
[1741354971295,51.13394671,146.31,146.27,9.62]
[1741354971677,51.13394671,146.3,146.27,9.62]
[1741354971995,51.13394671,146.28,146.22,60.75394671]
[1741354972195,51.13394671,146.37,146.2,51.13394671]
[1741354972196,51.13394671,146.26,146.2,51.13394671]
[1741354972499,51.13394671,146.27,146.21,51.27610828]
[1741354972675,51.13394671,146.26,146.2,51.13394671]
[1741354972880,51.13394671,146.26,146.21,0.14216157]
[1741354973200,51.13394671,146.26,146.25,0.14216157]
[1741354973383,51.13394671,146.26,146.24,312.0]
[1741354973880,51.13394671,146.25,146.15,6.8421]
[1741354974081,51.13394671,146.22,146.18,0.14216157]
[1741354974494,51.13394671,146.23,146.14,9.62]
[1741354974700,51.13394671,146.23,146.18,0.14216157]
[1741354974896,51.13394671,146.21,146.15,51.13394671]
[1741354975199,51.13394671,146.2,146.15,0.14216157]
[1741354975393,51.13394671,146.18,146.13,9.62]
[1741354975783,51.13394671,146.17,146.13,9.62]
[1741354975988,51.13394671,146.16,146.14,0.14216157]
[1741354976204,34.42193672,146.16,146.14,0.14216157]
[1741354976380,51.13394671,146.17,146.13,9.62]
[1741354976582,51.13394671,146.16,146.14,0.14216157]
[1741354976899,51.13394671,146.16,146.1,199.11394671]
[1741354977104,51.13394671,146.16,146.09,28.30264886]
[1741354977105,51.13394671,146.14,146.09,0.033]
[1741354977287,51.13394671,146.14,146.09,0.17516157]
[1741354977487,51.13394671,146.23,146.09,0.033]
[1741354977488,51.13394671,146.12,146.09,0.033]
[1741354977689,51.13394671,146.1,146.09,0.033]
[1741354977998,51.13394671,146.16,146.09,0.033]
[1741354977999,51.13394671,146.11,146.09,0.033]
[1741354978798,51.13394671,146.1,146.09,0.033]
[1741354979213,51.13394671,146.16,146.09,0.033]
[1741354979397,51.13394671,146.14,146.09,0.033]
[1741354979598,51.13394671,146.11,146.09,0.033]
[1741354980009,51.13394671,146.16,146.09,312.033]
[1741354980384,51.13394671,146.1,146.09,0.033]
[1741354980586,102.26789342,146.1,146.09,0.033]
[1741354980787,102.26789342,146.1,146.09,10.97469639]
[1741354980788,51.13394671,146.1,146.09,10.97469639]
[1741354981096,51.13394671,146.1,146.09,0.033]
[1741354981812,51.13394671,146.11,146.09,0.033]
[1741354982103,7.5784,146.14,146.09,0.033]
[1741354982104,51.13394671,146.12,146.09,0.033]
[1741354982307,51.13394671,146.1,146.05,0.14216157]
[1741354982519,51.13394671,146.07,146.01,51.13394671]
[1741354982685,51.13394671,146.05,146.0,0.033]
[1741354983015,51.13394671,146.05,146.0,6.8821]
[1741354983302,9.62,146.12,146.0,6.8821]
[1741354983303,51.13394671,146.06,146.01,312.0]
[1741354983701,51.13394671,146.06,146.02,0.14216157]
[1741354984212,51.13394671,146.06,146.01,6.8487]
[1741354984503,51.13394671,146.11,146.04,51.13394671]
[1741354984707,51.13394671,146.12,146.06,51.27610828]
[1741354985009,51.13394671,146.13,146.07,51.13394671]
[1741354985191,51.13394671,146.13,146.06,51.13394671]
[1741354985388,51.13394671,146.1,146.05,0.14216157]
[1741354985789,7.5784,146.14,146.07,0.14216157]
[1741354985998,58.71234671,146.14,146.07,51.27610828]
[1741354986204,51.13394671,146.14,146.09,0.14216157]
[1741354986590,51.13394671,146.11,146.06,0.14216157]
[1741354986785,51.13394671,146.1,146.06,312.14216157]
[1741354987001,51.13394671,146.08,146.02,51.13394671]
[1741354987211,51.13394671,146.07,146.01,51.13394671]
[1741354987515,51.13394671,146.06,146.01,0.14216157]
[1741354987712,51.13394671,146.05,146.0,0.033]
[1741354987886,51.13394671,146.05,146.0,312.033]
[1741354988093,51.13394671,146.05,146.01,0.14216157]
[1741354988308,51.13394671,146.06,146.01,0.14216157]
[1741354988587,51.13394671,146.08,146.01,51.27610828]
[1741354989089,51.13394671,146.08,146.02,0.14216157]
[1741354989507,51.13394671,146.1,146.04,51.27610828]
[1741354989920,51.13394671,146.06,146.02,0.14216157]
[1741354990095,51.13394671,146.07,146.02,0.14216157]
[1741354990293,51.13394671,146.09,146.03,51.13394671]
[1741354990492,51.13394671,146.16,146.05,51.27610828]
[1741354990692,0.03,146.1,146.05,51.27610828]
[1741354991310,51.16394671,146.1,146.05,0.14216157]
[1741354991528,51.13394671,146.07,146.01,51.13394671]
[1741354991724,51.13394671,146.07,146.0,6.8822]
[1741354991939,51.13394671,146.07,146.0,51.16694671]
[1741354992136,51.13394671,146.07,146.01,51.13394671]
[1741354992350,0.03,146.1,146.05,51.27610828]
[1741354992509,0.03,146.1,146.06,0.14216157]